bitfinex-derivatives/quotes_BTCF0:USTF0_20250315
["timestamp","ask_amount","ask_price","bid_price","bid_amount"]
[1742038867839,0.2944629,84078.0,84077.0,0.9425243]
[1742038868041,0.2944629,84078.0,84077.0,0.6925243]
[1742038868333,0.2944629,84078.0,84077.0,0.4325243]
[1742038868735,0.2944629,84078.0,84077.0,0.1825243]
[1742038868934,0.2944629,84078.0,84077.0,0.4625243]
[1742038869926,0.2944629,84078.0,84077.0,0.1825243]
[1742038870129,0.2944629,84078.0,84077.0,0.3136]
[1742038870328,0.2944629,84078.0,84077.0,0.2936]
[1742038871748,0.2944629,84078.0,84077.0,0.4125243]
[1742038879948,0.2944629,84078.0,84077.0,0.4325243]
[1742038882352,0.3939,84083.0,84081.0,0.0594593]
[1742038882353,0.3608,84083.0,84081.0,0.0594593]
[1742038882556,0.1189078,84089.0,84086.0,0.1189115]
[1742038882849,0.38083419,84091.0,84086.0,0.3689115]
[1742038882850,0.40377911,84087.0,84086.0,0.3689115]
[1742038883147,0.40377911,84087.0,84086.0,0.4637115]
[1742038883352,0.46627911,84087.0,84086.0,0.4637115]
[1742038884648,0.46627911,84087.0,84086.0,0.7237115]
[1742038884841,0.46627911,84087.0,84086.0,0.4637115]
[1742038885050,0.1814101,84087.0,84086.0,0.4637115]
[1742038888054,0.1503101,84087.0,84086.0,0.7537115]
[1742038888246,0.1189101,84087.0,84086.0,0.7537115]
[1742038889063,0.1505101,84087.0,84086.0,0.4637115]
[1742038889241,0.1505101,84087.0,84086.0,0.7337115]
[1742038889652,0.1505101,84087.0,84086.0,0.7437115]
[1742038890663,0.1505101,84087.0,84086.0,0.4637115]
[1742038891047,0.1505101,84087.0,84086.0,0.7437115]
[1742038891558,0.1505101,84087.0,84086.0,0.7337115]
[1742038891945,0.1505101,84087.0,84086.0,0.4637115]
[1742038892349,0.1505101,84087.0,84086.0,0.7137115]
[1742038893056,0.1505101,84087.0,84086.0,0.4637115]
[1742038893359,0.1505101,84087.0,84086.0,0.7437115]
[1742038893746,0.1505101,84087.0,84086.0,0.4637115]
[1742038894464,0.00017836,84099.0,84098.0,0.1188946]
[1742038894757,0.00017836,84099.0,84098.0,1.1996946]
[1742038894959,0.01117452,84099.0,84098.0,1.1996946]
[1742038895261,0.01117452,84099.0,84098.0,1.2626946]
[1742038895443,0.01117452,84099.0,84098.0,1.2826946]
[1742038895649,0.01517452,84099.0,84098.0,1.2826946]
[1742038895850,0.01517452,84099.0,84098.0,1.2926946]
[1742038896447,0.01517452,84099.0,84098.0,1.2826946]
[1742038896645,0.01817452,84099.0,84098.0,1.2826946]
[1742038897056,0.01817452,84099.0,84098.0,1.3026946]
[1742038897459,0.01817452,84099.0,84098.0,1.31465677]
[1742038899564,0.059436,84117.0,84116.0,0.0594325]
[1742038899768,0.059436,84117.0,84116.0,0.2994325]
[1742038900746,0.063436,84117.0,84116.0,0.2994325]
[1742038900951,0.063436,84117.0,84116.0,0.3302325]
[1742038901455,0.129536,84117.0,84116.0,0.3302325]
[1742038901652,0.0701,84117.0,84116.0,0.3302325]
[1742038901845,0.0701,84117.0,84116.0,0.5702325]
[1742038902049,0.0701,84117.0,84116.0,0.3302325]
[1742038902249,0.0751,84117.0,84116.0,0.3302325]
[1742038902447,0.1939677,84117.0,84116.0,0.3302325]
[1742038902861,0.1889677,84117.0,84116.0,0.3302325]
[1742038903162,0.1939677,84117.0,84116.0,0.3302325]
[1742038907665,0.1939677,84117.0,84116.0,0.0902325]
[1742038908066,0.0594352,84116.0,84113.0,0.0594363]
[1742038908368,0.1188776,84110.0,84108.0,0.23793686]
[1742038908567,0.180979,84109.0,84108.0,0.37905736]
[1742038908755,0.212679,84109.0,84108.0,0.37905736]
[1742038909159,0.212679,84109.0,84108.0,0.26017836]
[1742038909354,0.212679,84109.0,84108.0,0.37905876]
[1742038909757,0.212679,84109.0,84108.0,0.26017836]
[1742038909956,0.212679,84109.0,84108.0,0.37905876]
[1742038910263,0.214679,84109.0,84108.0,0.11905876]
[1742038910654,0.214679,84109.0,84108.0,0.16905876]
[1742038910967,0.22139556,84109.0,84108.0,0.16905876]
[1742038911166,0.22139556,84109.0,84108.0,0.23365876]
[1742038911366,0.23255045,84109.0,84108.0,0.23365876]
[1742038912958,0.22883389,84109.0,84108.0,0.23365876]
[1742038917470,0.07915489,84109.0,84108.0,0.23365876]
[1742038917675,0.07915489,84109.0,84108.0,0.26635876]
[1742038917873,0.3608,84121.0,84120.0,0.1188635]
[1742038918060,0.37188913,84121.0,84120.0,0.1188635]
[1742038918263,0.37188913,84121.0,84108.0,0.09747836]
[1742038918264,0.118879,84109.0,84108.0,0.05961796]
[1742038918583,0.118879,84109.0,84108.0,0.31991796]
[1742038919165,0.118879,84109.0,84108.0,0.35151796]
[1742038919565,0.118879,84109.0,84108.0,0.52983176]
[1742038920168,0.118879,84109.0,84108.0,0.56053176]
[1742038920369,0.213079,84109.0,84108.0,0.56053176]
[1742038920674,0.213079,84109.0,84108.0,0.52983176]
[1742038921173,0.216079,84109.0,84108.0,0.52983176]
[1742038924270,0.0672,84109.0,84108.0,0.76983176]
[1742038924481,0.003,84109.0,84108.0,1.02983176]
[1742038924676,0.003,84109.0,84108.0,0.76983176]
[1742038924980,0.0663,84114.0,84113.0,0.1188734]
[1742038925165,0.0663,84114.0,84113.0,0.6288734]
[1742038925367,0.0663,84114.0,84113.0,0.7227734]
[1742038925670,0.0663,84114.0,84113.0,0.4427734]
[1742038925873,0.185172,84114.0,84113.0,0.4427734]
[1742038926475,0.192172,84114.0,84113.0,0.4427734]
[1742038927183,0.007,84114.0,84113.0,0.8500734]
[1742038927382,0.007,84114.0,84113.0,0.8600734]
[1742038928082,0.007,84114.0,84113.0,0.6300734]
[1742038929375,0.0396,84114.0,84113.0,0.6300734]
[1742038930569,0.0396,84114.0,84113.0,0.6500734]
[1742038930776,0.0396,84114.0,84113.0,0.6300734]
[1742038931184,0.007,84114.0,84113.0,0.6300734]
[1742038931480,0.007,84114.0,84113.0,0.9000734]
[1742038931676,0.007,84114.0,84113.0,0.6300734]
[1742038932979,0.007,84114.0,84113.0,0.8600734]
[1742038933189,0.00017836,84125.0,84118.0,0.0594327]
[1742038933370,0.00017836,84125.0,84124.0,0.4796578]
[1742038933371,0.03137836,84125.0,84124.0,0.4796578]
[1742038933576,0.00017836,84125.0,84124.0,0.7798578]
[1742038934082,0.00017836,84125.0,84124.0,0.8398578]
[1742038934471,0.47436,84137.0,84124.0,0.8398578]
[1742038934472,0.3608,84137.0,84127.0,0.0594262]
[1742038934683,0.0303,84149.0,84146.0,0.1188268]
[1742038934885,0.0303,84149.0,84146.0,0.8388268]
[1742038935185,0.1188268,84146.0,84145.0,0.4796282]
[1742038935381,0.2107268,84146.0,84145.0,0.7898282]
[1742038935580,0.22182065,84146.0,84145.0,0.7898282]
[1742038935788,0.22553539,84146.0,84145.0,0.7898282]
[1742038935985,0.22553539,84146.0,84145.0,0.5098282]
[1742038936187,0.01480859,84146.0,84145.0,1.0298282]
[1742038936400,0.01480859,84146.0,84145.0,1.28201628]
[1742038936589,0.45568894,84150.0,84149.0,0.1188225]
[1742038936790,0.57391003,84150.0,84149.0,0.3788225]
[1742038936977,0.45508893,84150.0,84149.0,0.3788225]
[1742038937181,0.45508893,84150.0,84149.0,0.4388225]
[1742038937586,0.48798893,84150.0,84149.0,0.4692225]
[1742038938175,0.45508893,84150.0,84149.0,0.6792225]
[1742038938484,0.45608893,84150.0,84149.0,0.6792225]
[1742038938686,0.45608893,84150.0,84149.0,0.7927425]
[1742038938881,0.15225343,84156.0,84155.0,0.118814]
[1742038939076,0.15225343,84156.0,84155.0,0.368814]
[1742038939282,0.27106603,84156.0,84155.0,0.368814]
[1742038939480,0.27106603,84156.0,84155.0,0.348814]
[1742038939891,0.33616603,84156.0,84155.0,0.23]
[1742038940084,0.3608,84163.0,84155.0,0.44]
[1742038940284,0.059403,84161.0,84160.0,0.0594028]
[1742038940573,0.1511983,84167.0,84166.0,0.1187985]
[1742038940782,0.1511983,84167.0,84166.0,0.3587985]
[1742038941385,0.1511983,84167.0,84166.0,0.6387985]
[1742038941689,0.1511983,84167.0,84166.0,0.3587985]
[1742038942279,0.1511983,84167.0,84166.0,0.6187985]
[1742038942484,0.1511983,84167.0,84166.0,0.3587985]
[1742038942880,0.1187971,84167.0,84166.0,0.4181943]
[1742038943284,0.1207971,84167.0,84166.0,0.1781943]
[1742038943591,0.1207971,84167.0,84166.0,0.0593986]
[1742038943592,0.17057791,84167.0,84166.0,0.0593986]
[1742038944195,0.1187985,84166.0,84165.0,0.031]
[1742038944390,0.16797931,84166.0,84165.0,0.09]
[1742038944691,0.1188112,84157.0,84152.0,0.11899575]
[1742038944997,0.13699201,84157.0,84156.0,0.5496126]
[1742038945384,0.13699201,84157.0,84156.0,0.4308]
[1742038945682,0.13699201,84157.0,84156.0,0.5496126]
[1742038946387,0.13699201,84157.0,84156.0,0.4308]
[1742038946589,0.1188169,84153.0,84152.0,0.00017825]
[1742038946895,0.13699771,84153.0,84152.0,0.26017825]
[1742038948086,0.13899771,84153.0,84152.0,0.26017825]
[1742038948487,0.13899771,84153.0,84152.0,0.37899655]
[1742038948695,0.1541299,84153.0,84152.0,0.37899655]
[1742038948899,0.2179299,84153.0,84152.0,0.37899655]
[1742038949590,0.19974909,84153.0,84152.0,0.37899655]
[1742038949991,0.19774909,84153.0,84152.0,0.37899655]
[1742038950198,0.19874909,84153.0,84152.0,0.37899655]
[1742038950788,0.19959879,84153.0,84152.0,0.37899655]
[1742038951900,0.19959879,84153.0,84152.0,0.44189655]
[1742038956204,0.19959879,84153.0,84152.0,0.26017825]
[1742038956398,0.19955463,84153.0,84152.0,0.26017825]
[1742038957202,0.19955463,84153.0,84152.0,0.37899655]
[1742038960420,0.19955463,84153.0,84152.0,0.26017825]
[1742038960709,0.19955463,84153.0,84152.0,0.37899655]
[1742038962314,0.19955463,84153.0,84152.0,0.26017825]
[1742038962908,0.19955463,84153.0,84152.0,0.37899655]
[1742038963697,0.19955463,84153.0,84152.0,0.44109655]
[1742038965998,0.19961846,84153.0,84152.0,0.44109655]
[1742038969813,0.19761846,84153.0,84152.0,0.44109655]
[1742038971708,0.21599918,84153.0,84152.0,0.44109655]
[1742038971911,0.2162002,84153.0,84152.0,0.44109655]
[1742038972717,0.2162002,84153.0,84152.0,0.41435107]
[1742038972915,0.22214364,84153.0,84152.0,0.38760559]
[1742038973113,0.22314364,84153.0,84152.0,0.38760559]
[1742038973933,0.2172002,84153.0,84152.0,0.38760559]
[1742038974809,0.19881948,84153.0,84152.0,0.38760559]
[1742038975011,0.19881948,84153.0,84152.0,0.1809183]
[1742038976320,0.19881948,84153.0,84152.0,0.0621]
[1742038976905,0.1188268,84146.0,84144.0,0.05959285]
[1742038977109,0.1188268,84146.0,84145.0,0.0328]
[1742038977409,0.13017016,84146.0,84145.0,0.4528]
[1742038977621,0.14215092,84146.0,84145.0,0.4528]
[1742038977805,0.14586555,84146.0,84145.0,0.41565011]
[1742038978009,0.13388479,84146.0,84145.0,0.41565011]
[1742038978223,0.13388479,84146.0,84145.0,0.44895011]
[1742038978605,0.13388479,84146.0,84145.0,0.56877831]
[1742038978810,0.13017016,84146.0,84145.0,0.56877831]
[1742038980415,0.13017016,84146.0,84145.0,0.56777831]
[1742038980620,0.13017016,84146.0,84145.0,0.56877831]
[1742038980815,0.14203804,84146.0,84145.0,0.56877831]
[1742038981115,0.14203804,84146.0,84145.0,0.60187831]
[1742038981314,0.14203804,84146.0,84145.0,0.60287831]
[1742038982420,0.13017016,84146.0,84145.0,0.60287831]
[1742038983519,0.13001389,84146.0,84145.0,0.60287831]
[1742038984119,0.13001389,84146.0,84145.0,0.60187831]
[1742038984719,0.1188268,84146.0,84145.0,0.60087831]
[1742038984915,0.12998986,84146.0,84145.0,0.60087831]
[1742038987415,0.13007667,84146.0,84145.0,0.60087831]
[1742038988416,0.16107667,84146.0,84145.0,0.60087831]
[1742038988618,0.16107667,84146.0,84145.0,0.44895011]
[1742038988824,0.1188366,84139.0,84132.0,0.0008]
[1742038989019,0.5390592,84137.0,84136.0,0.0325]
[1742038989323,0.5390592,84137.0,84136.0,0.1025]
[1742038989324,0.66369298,84137.0,84136.0,0.1025]
[1742038989515,0.69469298,84137.0,84136.0,0.1025]
[1742038990312,0.69469298,84137.0,84136.0,0.07]
[1742038990511,0.1188409,84136.0,84135.0,0.00578278]
[1742038990719,0.1168479,84131.0,84130.0,0.031]
[1742038990916,0.12800168,84131.0,84130.0,0.101]
[1742038991122,0.12600168,84131.0,84130.0,0.101]
[1742038991318,0.12600168,84131.0,84130.0,0.2198493]
[1742038991627,0.18960168,84131.0,84130.0,0.2198493]
[1742038992621,0.18960168,84131.0,84130.0,0.101]
[1742038993215,0.20135032,84131.0,84130.0,0.101]
[1742038993433,0.19935032,84131.0,84130.0,0.101]
[1742038993625,0.19735032,84131.0,84130.0,0.101]
[1742038993826,0.18560168,84131.0,84130.0,0.101]
[1742038994020,0.18560168,84131.0,84130.0,0.2198493]
[1742038994221,0.18560168,84131.0,84130.0,0.2228493]
[1742038994428,0.18560168,84131.0,84130.0,0.2574493]
[1742038994724,0.18560168,84131.0,84130.0,0.1874493]
[1742038994927,0.15340168,84131.0,84130.0,0.1874493]
[1742038995125,0.031,84136.0,84135.0,0.1188423]
[1742038995433,0.031,84136.0,84135.0,0.3888423]
[1742038996523,0.0611,84136.0,84135.0,0.3888423]
[1742038996926,0.0611,84136.0,84135.0,0.3928423]
[1742038997321,0.1799409,84136.0,84135.0,0.3928423]
[1742038997731,0.0611,84136.0,84135.0,0.3908423]
[1742038997931,0.0611,84136.0,84135.0,0.3928423]
[1742038998130,0.1799409,84136.0,84135.0,0.3928423]
[1742038998434,0.0611,84136.0,84135.0,0.3928423]
[1742038999834,0.1799409,84136.0,84135.0,0.3908423]
[1742039000020,0.1799409,84136.0,84135.0,0.3928423]
[1742039000438,0.1799409,84136.0,84135.0,0.3908423]
[1742039000623,0.1799409,84136.0,84135.0,0.3928423]
[1742039002330,0.0611,84136.0,84135.0,0.3928423]
[1742039002824,0.1799409,84136.0,84135.0,0.3928423]
[1742039003025,0.1498409,84136.0,84135.0,0.3908423]
[1742039003227,0.031,84136.0,84135.0,0.3928423]
[1742039003734,0.1498409,84136.0,84135.0,0.3928423]
[1742039003946,0.1822409,84136.0,84135.0,0.3928423]
[1742039008429,0.1822409,84136.0,84135.0,0.4236423]
[1742039009343,0.0634,84136.0,84135.0,0.4236423]
[1742039012736,0.0634,84136.0,84135.0,0.46607054]
[1742039013330,0.1822409,84136.0,84135.0,0.4539423]
[1742039013533,0.0634,84136.0,84135.0,0.4539423]
[1742039014530,0.031,84136.0,84135.0,0.5839423]
[1742039014735,0.031,84136.0,84135.0,0.7339423]
[1742039014937,0.031,84136.0,84135.0,0.5839423]
[1742039017645,0.031,84136.0,84135.0,0.6639423]
[1742039018433,0.031,84136.0,84135.0,0.5839423]
[1742039018647,0.031,84136.0,84135.0,0.6039423]
[1742039018840,0.031,84136.0,84135.0,0.5839423]
[1742039019034,0.031,84136.0,84135.0,0.6039423]
[1742039019235,0.031,84136.0,84135.0,0.6639423]
[1742039019845,0.031,84136.0,84135.0,0.6439423]
[1742039020041,0.031,84136.0,84135.0,0.6739423]
[1742039020240,0.04189158,84136.0,84135.0,0.6739423]
[1742039020850,0.04189158,84136.0,84135.0,0.6039423]
[1742039021247,0.031,84136.0,84135.0,0.8339423]
[1742039021542,0.031,84136.0,84135.0,0.5839423]
[1742039022150,0.04188477,84136.0,84135.0,0.5839423]
[1742039024735,0.0418838,84136.0,84135.0,0.5839423]
[1742039025645,0.0418838,84136.0,84135.0,0.7339423]
[1742039026242,0.031,84136.0,84135.0,0.7539423]
[1742039026951,0.031,84136.0,84135.0,0.5839423]
[1742039028640,0.031,84136.0,84135.0,0.4236423]
[1742039029452,0.0617,84136.0,84135.0,0.4236423]
[1742039029852,0.19261708,84136.0,84135.0,0.3928423]
[1742039038258,0.1805409,84136.0,84135.0,0.3928423]
[1742039040249,0.1805409,84136.0,84135.0,0.4230423]
[1742039042555,0.19245871,84136.0,84135.0,0.4230423]
[1742039045462,0.1805409,84136.0,84135.0,0.4230423]
[1742039046963,0.19239795,84136.0,84135.0,0.4230423]
[1742039047158,0.1805409,84136.0,84135.0,0.4230423]
[1742039049255,0.1926791,84136.0,84135.0,0.4230423]
[1742039050761,0.1926791,84136.0,84135.0,0.4550423]
[1742039052970,0.1926791,84136.0,84135.0,0.1850423]
[1742039053368,0.1926791,84136.0,84135.0,0.1530423]
[1742039053961,0.1926791,84136.0,84135.0,0.1861423]
[1742039054157,0.1926791,84136.0,84135.0,0.2461423]
[1742039084089,0.1926791,84136.0,84135.0,0.2451423]
[1742039085079,0.1926791,84136.0,84135.0,0.2431423]
[1742039085281,0.1926791,84136.0,84135.0,0.2451423]
[1742039085889,0.1926791,84136.0,84135.0,0.2431423]
[1742039086088,0.1926791,84136.0,84135.0,0.2451423]
[1742039088281,0.0738382,84136.0,84135.0,0.3851423]
[1742039088678,0.0738382,84136.0,84135.0,0.3861423]
[1742039089288,0.0738382,84136.0,84135.0,0.2461423]
[1742039089595,0.1926791,84136.0,84135.0,0.2461423]
[1742039090290,0.1926791,84136.0,84135.0,0.2451423]
[1742039091192,0.1926791,84136.0,84135.0,0.2431423]
[1742039091494,0.1926791,84136.0,84135.0,0.2451423]
[1742039092097,0.4526791,84136.0,84135.0,0.2451423]
[1742039092400,0.1926791,84136.0,84135.0,0.2451423]
[1742039093281,0.4326791,84136.0,84135.0,0.2451423]
[1742039093484,0.1926791,84136.0,84135.0,0.2451423]
[1742039093895,0.1926791,84136.0,84135.0,0.2441423]
[1742039094091,0.1926791,84136.0,84135.0,0.2451423]
[1742039094691,0.4626791,84136.0,84135.0,0.2451423]
[1742039094899,0.4826791,84136.0,84135.0,0.2451423]
[1742039095990,0.1926791,84136.0,84135.0,0.2451423]
[1742039096191,0.4326791,84136.0,84135.0,0.2451423]
[1742039097396,0.4326791,84136.0,84135.0,0.0332]
[1742039098094,0.4426791,84136.0,84135.0,0.0332]
[1742039098489,0.1188508,84129.0,84126.0,0.0594271]
[1742039098697,0.1178508,84129.0,84128.0,0.28017825]
[1742039099198,0.1178508,84129.0,84128.0,0.39903045]
[1742039099706,0.1168508,84129.0,84128.0,0.39903045]
[1742039099894,0.1168508,84129.0,84128.0,0.40203045]
[1742039100299,0.1168508,84129.0,84128.0,0.40403045]
[1742039100703,0.2303308,84129.0,84128.0,0.40403045]
[1742039102189,0.2303308,84129.0,84128.0,0.25517825]
[1742039102394,0.5003308,84129.0,84128.0,0.25517825]
[1742039104205,0.5003308,84129.0,84128.0,0.00517825]
[1742039104400,0.5003308,84129.0,84118.0,0.07143908]
[1742039104401,0.1188677,84117.0,84116.0,0.1520622]
[1742039104605,0.1188677,84117.0,84116.0,1.0104958]
[1742039105105,0.1188677,84117.0,84116.0,0.53]
[1742039105303,0.1188677,84117.0,84116.0,0.6488691]
[1742039105802,0.1512677,84117.0,84116.0,0.536]
[1742039106207,0.1512677,84117.0,84116.0,0.541]
[1742039106804,0.16338974,84117.0,84116.0,0.541]
[1742039106998,0.16338974,84117.0,84116.0,0.271]
[1742039107904,0.16338974,84117.0,84116.0,0.265]
[1742039108209,0.16338974,84117.0,84116.0,0.008]
[1742039108800,0.52418974,84117.0,84116.0,0.008]
[1742039109601,0.52418974,84117.0,84116.0,0.005]
[1742039111115,0.0594352,84116.0,84113.0,0.059436]
[1742039111410,0.1188776,84110.0,84109.0,0.0594393]
[1742039111614,0.2323576,84110.0,84109.0,0.3194393]
[1742039112110,0.2323576,84110.0,84109.0,0.26]
[1742039112307,0.118879,84109.0,84108.0,0.03247825]
[1742039112506,0.1188917,84100.0,84097.0,0.0594473]
[1742039112707,0.1148917,84100.0,84099.0,0.16067684]
[1742039113102,0.1787917,84100.0,84099.0,0.16067684]
[1742039113903,0.2097917,84100.0,84099.0,0.16567684]
[1742039114100,0.2097917,84100.0,84099.0,0.04678364]
[1742039114400,0.1188988,84095.0,84094.0,0.3608]
[1742039114606,0.1188988,84095.0,84094.0,0.3708]
[1742039115110,0.1168988,84095.0,84094.0,0.3708]
[1742039115312,0.1813988,84095.0,84094.0,0.4897002]
[1742039115516,0.1189172,84084.0,84083.0,0.1189144]
[1742039115813,0.1189172,84084.0,84083.0,0.11]
[1742039116009,0.1189172,84084.0,84083.0,0.08]
[1742039116197,0.1825172,84084.0,84083.0,0.08]
[1742039116401,0.1825172,84084.0,84083.0,0.1128]
[1742039116802,0.19416274,84084.0,84083.0,0.1128]
[1742039117510,0.1825172,84084.0,84083.0,0.1128]
[1742039118615,0.1825172,84084.0,84083.0,0.2317158]
[1742039120808,0.1825172,84084.0,84083.0,0.2639158]
[1742039124814,0.1825172,84084.0,84083.0,0.145]
[1742039125006,0.1825172,84084.0,84083.0,0.2639158]
[1742039135929,0.1825172,84084.0,84083.0,0.5239158]
[1742039136110,0.1825172,84084.0,84083.0,0.5339158]
[1742039136425,0.1825172,84084.0,84083.0,0.2639158]
[1742039137910,0.2960372,84084.0,84083.0,0.2639158]
[1742039138615,0.1825172,84084.0,84083.0,0.2639158]
[1742039138814,0.2960372,84084.0,84083.0,0.2639158]
[1742039139310,0.1825172,84084.0,84083.0,0.2639158]
[1742039139520,0.2960372,84084.0,84083.0,0.1128]
[1742039139726,0.2960372,84084.0,84083.0,0.2317158]
[1742039140125,0.1825172,84084.0,84083.0,0.2317158]
[1742039140426,0.2960372,84084.0,84083.0,0.2317158]
[1742039142822,0.2960372,84084.0,84083.0,0.2626158]
[1742039148619,0.1825172,84084.0,84083.0,0.2626158]
[1742039149122,0.2960372,84084.0,84083.0,0.2626158]
[1742039149325,0.1825172,84084.0,84083.0,0.2626158]
[1742039149735,0.2960372,84084.0,84083.0,0.2626158]
[1742039151526,0.1825172,84084.0,84083.0,0.2626158]
[1742039151732,0.2960372,84084.0,84083.0,0.2626158]
[1742039153724,0.1825172,84084.0,84083.0,0.2626158]
[1742039154050,0.2960372,84084.0,84083.0,0.2626158]
[1742039155540,0.1825172,84084.0,84083.0,0.2626158]
[1742039155744,0.2960372,84084.0,84083.0,0.2626158]
[1742039156325,0.1825172,84084.0,84083.0,0.2626158]
[1742039156633,0.2960372,84084.0,84083.0,0.2626158]
[1742039157436,0.2960372,84084.0,84083.0,0.2317158]
[1742039158333,0.2960372,84084.0,84083.0,0.2637158]
[1742039162036,0.2960372,84084.0,84083.0,0.5237158]
[1742039162237,0.2960372,84084.0,84083.0,0.2637158]
[1742039165839,0.1825172,84084.0,84083.0,0.2637158]
[1742039166153,0.2960372,84084.0,84083.0,0.2637158]
[1742039170273,0.1825172,84084.0,84083.0,0.2637158]
[1742039170463,0.2960372,84084.0,84083.0,0.2637158]
[1742039172870,0.1825172,84084.0,84083.0,0.2637158]
[1742039173076,0.2959972,84084.0,84083.0,0.2637158]
[1742039176870,0.1825172,84084.0,84083.0,0.2637158]
[1742039177070,0.2959972,84084.0,84083.0,0.2637158]
[1742039177368,0.1825172,84084.0,84083.0,0.2637158]
[1742039177573,0.2959972,84084.0,84083.0,0.2637158]
[1742039179071,0.2959972,84084.0,84083.0,0.2317158]
[1742039179583,0.2959972,84084.0,84083.0,0.1517158]
[1742039180381,0.2959972,84084.0,84083.0,0.1841158]
[1742039182985,0.1825172,84084.0,84083.0,0.1841158]
[1742039183178,0.2959972,84084.0,84083.0,0.1841158]
[1742039183479,0.2959972,84084.0,84083.0,0.1517158]
[1742039183686,0.2959972,84084.0,84083.0,0.0328]
[1742039184585,0.1825172,84084.0,84083.0,0.1517158]
[1742039184784,0.2959972,84084.0,84083.0,0.1517158]
[1742039187082,0.2959972,84084.0,84083.0,0.0328]
[1742039188290,0.2959972,84084.0,84083.0,0.1517158]
[1742039190075,0.2959972,84084.0,84083.0,0.3917158]
[1742039190275,0.2959972,84084.0,84083.0,0.4222158]
[1742039199793,0.2959972,84084.0,84083.0,0.43561773]
[1742039200383,0.2959972,84084.0,84083.0,0.4222158]
[1742039201979,0.2959972,84084.0,84083.0,0.43561233]
[1742039202295,0.2959972,84084.0,84083.0,0.4222158]
[1742039203883,0.2959972,84084.0,84083.0,0.43580248]
[1742039204685,0.1825172,84084.0,84083.0,0.43580248]
[1742039204887,0.2959972,84084.0,84083.0,0.43580248]
[1742039205384,0.2959972,84084.0,84083.0,0.4222158]
[1742039209889,0.2959972,84084.0,84083.0,0.7022158]
[1742039210095,0.3608,84103.0,84095.0,0.1188988]
[1742039210400,0.1188963,84097.0,84095.0,0.8588988]
[1742039210698,0.1489949,84098.0,84095.0,0.6188988]
[1742039210893,0.0301,84098.0,84095.0,0.69327834]
[1742039211088,0.31862348,84099.0,84095.0,0.76327834]
[1742039211284,0.28850738,84096.0,84095.0,0.69327834]
[1742039211487,0.28850738,84096.0,84095.0,0.78617834]
[1742039211699,0.29050738,84096.0,84095.0,0.72617834]
[1742039212901,0.002,84096.0,84095.0,0.72617834]
[1742039213097,0.003,84096.0,84095.0,0.73962654]
[1742039214900,0.003,84096.0,84095.0,0.79962654]
[1742039215105,0.00178433,84101.0,84099.0,0.1188932]
[1742039215300,0.1188726,84114.0,84107.0,0.1188818]
[1742039215604,0.118872,84114.0,84107.0,0.8388818]
[1742039215798,0.00017836,84108.0,84107.0,0.8388818]
[1742039216003,0.00017836,84108.0,84107.0,1.2644818]
[1742039216791,0.28550738,84120.0,84119.0,0.1188649]
[1742039216995,0.28550738,84120.0,84119.0,1.2196649]
[1742039217191,0.31862348,84126.0,84124.0,0.1188578]
[1742039217401,0.0327,84132.0,84127.0,0.1188536]
[1742039217595,0.40374683,84128.0,84127.0,0.6688536]
[1742039217995,0.40374683,84128.0,84127.0,0.7336536]
[1742039219695,0.01094686,84128.0,84127.0,0.7336536]
[1742039219899,0.01294686,84128.0,84127.0,0.7336536]
[1742039220610,0.01288145,84128.0,84127.0,0.7336536]
[1742039221001,0.01388145,84128.0,84127.0,0.7336536]
[1742039221511,0.13286834,84128.0,84127.0,0.1505536]
[1742039222100,0.13286834,84128.0,84127.0,0.2305536]
[1742039222302,0.16596834,84128.0,84127.0,0.1505536]
[1742039224014,0.16596834,84128.0,84127.0,0.3605536]
[1742039224415,0.0594302,84123.0,84119.0,0.36097836]
[1742039224599,0.1188635,84120.0,84119.0,0.63097836]
[1742039224803,0.1188635,84120.0,84119.0,0.74984326]
[1742039224804,0.12987964,84120.0,84119.0,0.74984326]
[1742039225706,0.49067964,84120.0,84119.0,0.27017836]
[1742039225903,0.49067964,84120.0,84119.0,0.27117836]
[1742039226099,0.118879,84109.0,84108.0,0.0594395]
[1742039226305,0.07045634,84109.0,84108.0,0.1588804]
[1742039226605,0.06945634,84109.0,84108.0,0.4488804]
[1742039226806,0.13055634,84109.0,84108.0,0.4488804]
[1742039227007,0.13055634,84109.0,84108.0,0.1588804]
[1742039227623,0.07211614,84109.0,84108.0,0.2288804]
[1742039228008,0.07211614,84109.0,84108.0,0.1888804]
[1742039228209,0.07211614,84109.0,84108.0,0.4988804]
[1742039228410,0.07211614,84109.0,84108.0,0.2188804]
[1742039230110,0.19099514,84109.0,84108.0,0.2188804]
[1742039231422,0.179979,84109.0,84108.0,0.2188804]
[1742039231814,0.19084606,84109.0,84108.0,0.2188804]
[1742039232122,0.179979,84109.0,84108.0,0.2188804]
[1742039232510,0.19084674,84109.0,84108.0,0.2188804]
[1742039232917,0.30428674,84109.0,84108.0,0.2188804]
[1742039233622,0.15470774,84109.0,84108.0,0.2788804]
[1742039233820,0.04126774,84109.0,84108.0,0.3690804]
[1742039234627,0.1445,84116.0,84115.0,0.1188705]
[1742039234814,0.1745,84116.0,84115.0,0.4288705]
[1742039235015,0.0611,84116.0,84115.0,0.4288705]
[1742039235220,0.0611,84116.0,84115.0,0.4338705]
[1742039235419,0.1799691,84116.0,84115.0,0.4338705]
[1742039235609,0.1799691,84116.0,84115.0,0.1521705]
[1742039237128,0.1799691,84116.0,84115.0,0.1188705]
[1742039237426,0.1799691,84116.0,84115.0,0.1494705]
[1742039237625,0.1799691,84116.0,84115.0,0.3394705]
[1742039237826,0.1799691,84116.0,84115.0,0.3711705]
[1742039241121,0.0611,84116.0,84115.0,0.6211705]
[1742039241927,0.03,84116.0,84115.0,0.6511705]
[1742039242930,0.0627,84116.0,84115.0,0.6511705]
[1742039243526,0.0627,84116.0,84115.0,0.6211705]
[1742039244318,0.03,84116.0,84115.0,0.7311705]
[1742039244618,0.0327,84122.0,84121.0,0.1188621]
[1742039244821,0.0327,84122.0,84121.0,0.7262621]
[1742039245220,0.1188545,84127.0,84126.0,0.118855]
[1742039245421,0.1188545,84127.0,84126.0,0.388855]
[1742039245618,0.1188545,84127.0,84126.0,0.422055]
[1742039245918,0.3608,84133.0,84132.0,0.1188465]
[1742039246127,0.3608,84133.0,84132.0,0.4888465]
[1742039246420,0.0324,84137.0,84134.0,0.1188437]
[1742039246618,0.01112967,84135.0,84134.0,0.3488437]
[1742039248220,0.04362967,84135.0,84134.0,0.3791437]
[1742039248727,0.04762967,84135.0,84134.0,0.4491437]
[1742039248921,0.03667836,84135.0,84134.0,0.4291437]
[1742039249231,0.03567836,84135.0,84134.0,0.4291437]
[1742039249413,0.03567836,84135.0,84134.0,0.3791437]
[1742039249818,0.03267836,84135.0,84134.0,0.3791437]
[1742039250018,0.03267836,84135.0,84134.0,0.6391437]